[Event "British Championship 2024"]
[Site "Hull"]
[Date "2024.07.31"]
[Round "5.10"]
[White "Williams, Simon K"]
[Black "Richardson, John R"]
[Result "0-1"]
[Annotator "TA"]
[ECO "A11"]
[WhiteElo "2450"]
[BlackElo "2299"]
[PlyCount "73"]
[EventDate "2024.07.31"]
[EventCountry "GBR"]
[SourceTitle "playchess.com"]
[Source "ChessBase"]
[SourceQuality "1"]
[TimeControl "40/5400+30:1800+30"]

{[%evp 9,73,-17,-7,-28,-20,-37,-31,-29,-23,-24,-25,-24,-18,-20,-25,-38,-37,-85,-86,-104,-84,-96,-93,-107,-95,-206,-175,-250,-250,-225,-216,-253,-253,-241,-225,-352,-344,-391,-402,-410,-405,-416,-408,-409,-405,-629,-572,-549,-570,-610,-604,-586,-594,-609,-602,-711,-711,-697,-700,-1316,-1316,-1288,-1277,-889,-669,-847]} 1. c4 {[%emt 0:00:12]} c6 {[%emt 0:00:53]} 2. Nf3 {[%emt 0:03:10]} d5 {[%emt 0:00:03]} 3. e3 {[%emt 0:00:21]} Nf6 {[%emt 0:00:03]} 4. Nc3 {[%emt 0:00:24]} Nbd7 {[%emt 0:00:27]} 5. b3 {[%emt 0:02:55]} e5 {[%emt 0:00:49]} 6. cxd5 {[%emt 0:03:13]} cxd5 {[%emt 0:00:23]} 7. Bb2 {[%emt 0:10:40]} a6 {[%emt 0:00:48]} 8. d3 {[%emt 0:25:20] Black is slightly better.} Bd6 {[%emt 0:01:47]} 9. g3 {[%emt 0:00:13]} O-O {[%emt 0:02:00][%cal Od5d4]} 10. Bg2 {[%emt 0:00:06]} Re8 {[%emt 0:04:18]} 11. O-O {[%emt 0:00:15]} b5 {[%emt 0:00:50]} 12. Nh4 {[%emt 0:03:25]} Bb7 {[%emt 0:01:38]} 13. d4 {[%emt 0:04:49]} (13. Rc1 $15) 13... e4 $17 {[%emt 0:05:10] White is on the road to losing.} 14. f3 {[%emt 0:00:35]} Rc8 {[%emt 0:04:22] Black is more active.} 15. Nf5 {[%emt 0:04:07]} Bb4 {[%emt 0:02:33]} 16. fxe4 {[%emt 0:02:59]} dxe4 {[%emt 0:11:36]} (16... Rxc3 17. Bxc3 Bxc3 18. Rc1 $15) 17. Ne2 {[%emt 0:02:11] [#]} (17. Rc1 $17) 17... g6 $1 $19 {[%emt 0:16:42]} 18. d5 {[%emt 0:02:48]} (18. Nh4 $142) 18... gxf5 {[%emt 0:01:00]} 19. Rxf5 {[%emt 0:00:11]} Bd6 {[%emt 0:00:32]} 20. Qd2 {[%emt 0:21:57]} Be5 {[%emt 0:01:54]} 21. Raf1 {[%emt 0:00:06]} Rc5 {[%emt 0:15:04]} 22. d6 {[%emt 0:03:37]} (22. Nf4 {was called for.}) 22... Bxb2 {[%emt 0:05:48]} 23. Qxb2 {[%emt 0:00:09] Threatens to win with Rxc5.} Rxf5 {[%emt 0:00:10]} 24. Rxf5 {[%emt 0:00:06]} Re6 {[%emt 0:00:37]} 25. Nd4 {[%emt 0:03:37]} Rxd6 {[%emt 0:00:22]} 26. Qf2 {[%emt 0:00:04]} Nf8 {[%emt 0:09:58]} 27. h4 {[%emt 0:00:54]} (27. h3 $142) 27... Bc8 {[%emt 0:01:26] Black is clearly winning.} 28. Rg5+ {[%emt 0:00:43]} Kh8 {[%emt 0:00:06] Strongly threatening ...Ne6.} 29. Rc5 {[%emt 0:00:46]} Ng4 {[%emt 0:02:36]} 30. Qb2 {[%emt 0:01:16]} f6 {[%emt 0:00:42] aiming for ...Ne6.} (30... Nxe3 $2 31. Ne6+ (31. Nxb5+ Rf6 $19) 31... f6 32. Nxd8 Rd1+ 33. Kf2 Ng4+ 34. Ke2 Rxd8 35. Bxe4 $18) 31. Bh3 {[%emt 0:00:18]} Bd7 {[%emt 0:00:28]} ({Less strong is} 31... Nxe3 32. Rxc8 Qb6 (32... Qe7 $2 33. Qc3 $18) 33. Rxf8+ $19 (33. Ne6 $2 Rxe6 34. Qe2 Kg7 $19)) 32. Qc3 {[%emt 0:00:50] [#]} Nxe3 $1 {[%emt 0:02:50]} 33. Bxd7 {[%emt 0:01:15]} Qxd7 {[%emt 0:01:29]} (33... Nxd7 34. Rc8 Ne5 35. Rxd8+ Rxd8 36. Qxe3 $18) 34. Rc7 {[%emt 0:00:36]} Qg4 {[%emt 0:00:54]} 35. Qxe3 {[%emt 0:00:17]} Qd1+ {[%emt 0:00:10]} 36. Kh2 {[%emt 0:00:05]} Qxd4 {[%emt 0:00:07]} 37. Qh6 {[%emt 0:00:06] Weighted Error Value: White=0.56/Black=0.04 (flawless) .  Mistake:       	White=5     	---        OK:         	White=5     	Black=14     Best:        	---       	Black=1      Strong:       	---       	Black=1} 0-1

[Event "British Championship 2024"]
[Site "Hull"]
[Date "2024.07.31"]
[Round "5.11"]
[White "Willow, Jonah B"]
[Black "Balaji, Aaravamudhan"]
[Result "0-1"]
[Annotator "RC"]
[ECO "B00"]
[WhiteElo "2422"]
[BlackElo "2346"]
[PlyCount "158"]
[EventDate "2024.07.31"]
[EventCountry "GBR"]
[SourceTitle "playchess.com"]
[Source "ChessBase"]
[SourceQuality "1"]
[TimeControl "40/5400+30:1800+30"]

1. e4 {[%emt 0:01:13]} d6 {[%emt 0:00:03]} 2. d4 {[%emt 0:00:40]} Nf6 {[%emt 0:00:05]} 3. Nc3 {[%emt 0:00:05]} Nc6 {[%emt 0:00:02]} 4. d5 {[%emt 0:05:04]} Nb8 {[%emt 0:00:05]} 5. Be3 {[%emt 0:02:41]} g6 {[%emt 0:00:16]} 6. Qd2 {[%emt 0:01:19]} c6 {[%emt 0:00:29]} 7. Be2 {[%emt 0:04:28]} a6 {[%emt 0:02:15]} 8. O-O-O {[%emt 0:04:14]} Nbd7 {[%emt 0:01:42]} 9. g4 {[%emt 0:06:37]} c5 {[%emt 0:07:37]} 10. g5 {[%emt 0:02:30]} Nh5 {[%emt 0:00:25]} 11. f4 {[%emt 0:01:48]} b5 {[%emt 0:02:46]} 12. e5 {[%emt 0:04:16]} Qa5 {[%emt 0:03:56]} 13. Kb1 {[%emt 0:08:18]} Nb6 {[%emt 0:04:25]} 14. exd6 {[%emt 0:01:46]} exd6 {[%emt 0:01:02]} 15. Qe1 {[%emt 0:19:05]} Kd8 {[%emt 0:02:39]} 16. Bd2 {[%emt 0:03:18]} b4 {[%emt 0:01:56]} 17. a3 {[%emt 0:00:47]} Bf5 {[%emt 0:11:31]} 18. Bd3 {[%emt 0:03:58]} Bg7 {[%emt 0:04:31]} 19. Ne4 {[%emt 0:06:00]} Bxb2 {[%emt 0:21:54]} 20. Nxd6 {[%emt 0:04:40]} Qxa3 {[%emt 0:00:36]} 21. Nxf7+ {[%emt 0:00:07]} Kc8 {[%emt 0:00:28]} 22. Bxf5+ {[%emt 0:00:05]} Kb8 {[%emt 0:01:05]} 23. c3 {[%emt 0:00:25]} Nc4 {[%emt 0:23:32]} 24. Kc2 {[%emt 0:07:57]} Qa4+ {[%emt 0:00:44]} 25. Kd3 {[%emt 0:00:21]} Re8 {[%emt 0:00:21]} 26. Be6 {[%emt 0:01:13]} Qb5 {[%emt 0:01:15]} 27. Ke4 {[%emt 0:00:49]} Rxe6+ {[%emt 0:01:42]} 28. dxe6 {[%emt 0:00:01]} Qc6+ {[%emt 0:00:18]} 29. Kd3 {[%emt 0:00:01]} Qd5+ {[%emt 0:00:26]} 30. Ke2 {[%emt 0:01:03]} Qxh1 {[%emt 0:03:57]} 31. e7 {[%emt 0:02:36]} Ka7 {[%emt 0:01:28]} 32. Nd8 {[%emt 0:01:26]} Qg2+ {[%emt 0:00:52]} 33. Qf2 {[%emt 0:00:35]} Qe4+ {[%emt 0:00:45]} 34. Kf1 {[%emt 0:00:42]} Kb6 {[%emt 0:00:50]} 35. Re1 {[%emt 0:00:58]} Qd3+ {[%emt 0:00:39]} 36. Kg2 {[%emt 0:00:01]} Rxd8 {[%emt 0:00:16]} 37. exd8=Q+ {[%emt 0:03:56]} Qxd8 {[%emt 0:00:01]} 38. cxb4 {[%emt 0:01:45]} Qxd2 {[%emt 0:00:40]} 39. bxc5+ {[%emt 0:00:08]} Kb5 {[%emt 0:00:42]} 40. Ne2 {[%emt 0:00:26]} Qd5+ {[%emt 0:01:16]} 41. Kh3 {[%emt 0:04:50]} Qf5+ {[%emt 0:09:32]} 42. Kh4 {[%emt 0:03:46]} h6 {[%emt 0:11:26]} 43. Qg2 {[%emt 0:02:21]} hxg5+ {[%emt 0:01:30]} 44. fxg5 {[%emt 0:00:09]} Kxc5 {[%emt 0:01:33]} 45. Rf1 {[%emt 0:02:55]} Qd5 {[%emt 0:02:52]} 46. Qf2+ {[%emt 0:09:27]} Kb5 {[%emt 0:00:56]} 47. Ng3 {[%emt 0:04:50]} Nxg3 {[%emt 0:00:54]} 48. Qxg3 {[%emt 0:00:28]} Qd4+ {[%emt 0:00:44]} 49. Kh3 {[%emt 0:00:32]} Qh8+ {[%emt 0:02:02]} 50. Kg2 {[%emt 0:00:23]} Qa8+ {[%emt 0:00:02]} 51. Kh3 {[%emt 0:00:44]} Qc8+ {[%emt 0:00:11]} 52. Kg2 {[%emt 0:00:14]} Qc6+ {[%emt 0:01:00]} 53. Kh3 {[%emt 0:00:26]} Qd7+ {[%emt 0:01:11]} 54. Kg2 {[%emt 0:00:27]} Qd5+ {[%emt 0:00:28]} 55. Kh3 {[%emt 0:00:13]} Qe6+ {[%emt 0:01:26]} 56. Kh4 {[%emt 0:00:05]} Qe2 {[%emt 0:00:31]} 57. Rf3 {[%emt 0:00:47]} Be5 {[%emt 0:01:24]} 58. Qf2 {[%emt 0:01:34]} Qe4+ {[%emt 0:00:42]} 59. Kh3 {[%emt 0:00:05]} Bd4 {[%emt 0:00:21]} 60. Rb3+ {[%emt 0:02:40]} Kc5 {[%emt 0:00:11]} 61. Qf8+ {[%emt 0:02:02]} Nd6 {[%emt 0:00:03]} 62. Rf3 {[%emt 0:00:31]} Qe6+ {[%emt 0:00:15]} 63. Kh4 {[%emt 0:00:38]} Qe2 {[%emt 0:01:07]} 64. Kh3 {[%emt 0:02:32]} Be5 {[%emt 0:00:25]} 65. Rf2 {[%emt 0:00:07]} Qh5+ {[%emt 0:00:10]} 66. Kg2 {[%emt 0:00:01]} Qxg5+ {[%emt 0:00:21]} 67. Kh1 {[%emt 0:00:22]} Qc1+ {[%emt 0:01:56]} 68. Kg2 {[%emt 0:00:13]} Bd4 {[%emt 0:00:43]} 69. Rf7 {[%emt 0:00:33]} Qc2+ {[%emt 0:00:30]} 70. Kh3 {[%emt 0:00:45]} Qb3+ {[%emt 0:00:09]} 71. Rf3 {[%emt 0:00:02]} Qe6+ {[%emt 0:00:08]} 72. Kg3 {[%emt 0:01:20]} g5 {[%emt 0:00:45]} 73. Kg2 {[%emt 0:01:29]} Qe2+ {[%emt 0:00:44]} 74. Kh3 {[%emt 0:01:53]} Qe6+ {[%emt 0:00:09]} 75. Kg2 {[%emt 0:00:12]} g4 {[%emt 0:00:15]} 76. Rf1 {[%emt 0:00:35]} Qe4+ {[%emt 0:00:26]} 77. Kg3 {[%emt 0:00:01]} Be5+ {[%emt 0:00:46]} 78. Kf2 {[%emt 0:01:11]} Qc2+ {[%emt 0:00:30]} 79. Ke3 {[%emt 0:00:07]} a5 {[%emt 0:01:13]} 0-1

[Event "British Championship 2024"]
[Site "Hull"]
[Date "2024.07.31"]
[Round "5.12"]
[White "Merriman, John"]
[Black "Pert, Richard G"]
[Result "1/2-1/2"]
[Annotator "ChessBase"]
[ECO "E49"]
[WhiteElo "2251"]
[BlackElo "2415"]
[PlyCount "240"]
[EventDate "2024.07.31"]
[EventCountry "GBR"]
[SourceTitle "playchess.com"]
[Source "ChessBase"]
[SourceQuality "1"]
[TimeControl "40/5400+30:1800+30"]

1. d4 {[%emt 0:01:24]} Nf6 {[%emt 0:00:25]} 2. c4 {[%emt 0:00:23]} e6 {[%emt 0:00:17]} 3. Nc3 {[%emt 0:00:18]} Bb4 {[%emt 0:00:20]} 4. e3 {[%emt 0:00:27]} O-O {[%emt 0:00:25]} 5. Bd3 {[%emt 0:01:12]} d5 {[%emt 0:00:48]} 6. a3 {[%emt 0:01:18]} Bxc3+ {[%emt 0:01:24]} 7. bxc3 {[%emt 0:00:06]} dxc4 {[%emt 0:11:33]} 8. Bxc4 {[%emt 0:00:07]} c5 {[%emt 0:00:11]} 9. Ne2 {[%emt 0:01:11]} Qc7 {[%emt 0:07:03]} 10. Ba2 {[%emt 0:01:15]} b6 {[%emt 0:02:21]} 11. O-O {[%emt 0:05:09]} Ba6 {[%emt 0:01:35]} 12. f3 {[%emt 0:17:46]} Nc6 {[%emt 0:01:13]} 13. Re1 {[%emt 0:06:32]} Rad8 {[%emt 0:01:42]} 14. Bb2 {[%emt 0:12:56]} e5 {[%emt 0:07:36]} 15. Qa4 {[%emt 0:08:30]} Qc8 {[%emt 0:03:50]} 16. Rad1 {[%emt 0:01:28]} b5 {[%emt 0:10:28]} 17. Qc2 {[%emt 0:01:58]} Bb7 {[%emt 0:06:09]} 18. d5 {[%emt 0:04:44]} Ne7 {[%emt 0:03:49]} 19. e4 {[%emt 0:00:11]} c4 {[%emt 0:00:17]} 20. Bc1 {[%emt 0:01:42]} Qc5+ {[%emt 0:02:19]} 21. Kh1 {[%emt 0:01:03]} Ne8 {[%emt 0:06:50]} 22. Ng3 {[%emt 0:01:48]} Nd6 {[%emt 0:00:53]} 23. a4 {[%emt 0:02:28]} a6 {[%emt 0:00:38]} 24. Be3 {[%emt 0:01:43]} Qc7 {[%emt 0:00:31]} 25. f4 {[%emt 0:03:54]} exf4 {[%emt 0:03:05]} 26. Bxf4 {[%emt 0:00:10]} Ng6 {[%emt 0:00:06]} 27. Bxd6 {[%emt 0:07:30]} Qxd6 {[%emt 0:01:40]} 28. Nf5 {[%emt 0:00:25]} Qe5 {[%emt 0:02:06]} 29. axb5 {[%emt 0:01:58]} axb5 {[%emt 0:00:05]} 30. Nd4 {[%emt 0:00:53]} Rfe8 {[%emt 0:04:24]} 31. Qd2 {[%emt 0:01:09]} Qh5 {[%emt 0:10:52]} 32. Nxb5 {[%emt 0:06:29]} Ne5 {[%emt 0:00:09]} 33. Nd4 {[%emt 0:01:46]} Bc8 {[%emt 0:01:37]} 34. Bb1 {[%emt 0:03:34]} Bg4 {[%emt 0:01:47]} 35. Rc1 {[%emt 0:00:18]} Rd6 {[%emt 0:00:08]} 36. Nf5 {[%emt 0:01:01]} Rg6 {[%emt 0:04:09]} 37. d6 {[%emt 0:02:20]} Nf3 {[%emt 0:04:16]} 38. Qf4 {[%emt 0:00:16]} Nxe1 {[%emt 0:01:23]} 39. Ne7+ {[%emt 0:00:40]} Kf8 {[%emt 0:00:52]} 40. Nxg6+ {[%emt 0:00:46]} hxg6 {[%emt 0:00:12]} 41. Rxe1 {[%emt 0:30:19]} Re5 {[%emt 0:04:55]} 42. Bc2 {[%emt 0:00:00]} f6 {[%emt 0:04:37]} 43. Ba4 {[%emt 0:00:00]} Be6 {[%emt 0:06:52]} 44. Rb1 {[%emt 0:00:00]} Kg8 {[%emt 0:02:18]} 45. d7 {[%emt 0:00:00]} Bxd7 {[%emt 0:00:08]} 46. Bxd7 {[%emt 0:00:00]} Qe2 {[%emt 0:00:05]} 47. Bc6 {[%emt 0:00:00]} Qd3 {[%emt 0:01:30]} 48. Rc1 {[%emt 0:00:00]} g5 {[%emt 0:00:49]} 49. Qf1 {[%emt 0:00:00]} Qd2 {[%emt 0:00:20]} 50. Bd5+ {[%emt 0:00:00]} Kf8 {[%emt 0:00:16]} 51. Qd1 {[%emt 0:00:00]} Qe3 {[%emt 0:00:15]} 52. Rb1 {[%emt 0:00:00]} g6 {[%emt 0:00:52]} 53. Rb8+ {[%emt 0:00:00]} Kg7 {[%emt 0:00:11]} 54. Rb7+ {[%emt 0:00:00]} Kh6 {[%emt 0:00:08]} 55. Rb1 {[%emt 0:00:00]} Qxc3 {[%emt 0:01:58]} 56. Rc1 {[%emt 0:00:03]} Qe3 {[%emt 0:01:31]} 57. Bxc4 {[%emt 0:02:13]} Rxe4 {[%emt 0:00:31]} 58. Bf1 {[%emt 0:00:22]} g4 {[%emt 0:07:39]} 59. g3 {[%emt 0:01:04]} f5 {[%emt 0:01:08]} 60. Bg2 {[%emt 0:00:35]} Re6 {[%emt 0:00:51]} 61. Rb1 {[%emt 0:00:25]} Kh5 {[%emt 0:00:37]} 62. Qd8 {[%emt 0:01:52]} g5 {[%emt 0:00:04]} 63. Bd5 {[%emt 0:02:44]} Qe5 {[%emt 0:01:09]} 64. Rd1 {[%emt 0:00:44]} Re7 {[%emt 0:02:40]} 65. Qf8 {[%emt 0:00:41]} Kg6 {[%emt 0:00:26]} 66. Qg8+ {[%emt 0:01:00]} Qg7 {[%emt 0:01:08]} 67. Qxg7+ {[%emt 0:00:26]} Kxg7 {[%emt 0:00:02]} 68. Rf1 {[%emt 0:00:51]} Kf6 {[%emt 0:00:11]} 69. Kg2 {[%emt 0:00:14]} Re3 {[%emt 0:00:25]} 70. Bc6 {[%emt 0:00:22]} Rc3 {[%emt 0:00:54]} 71. Bd7 {[%emt 0:00:30]} Rc5 {[%emt 0:00:05]} 72. Rf2 {[%emt 0:00:14]} Rd5 {[%emt 0:00:22]} 73. Ba4 {[%emt 0:00:10]} Rd4 {[%emt 0:01:05]} 74. Be8 {[%emt 0:01:33]} f4 {[%emt 0:00:30]} 75. Bh5 {[%emt 0:00:51]} Kf5 {[%emt 0:00:13]} 76. Ra2 {[%emt 0:00:28]} Rd5 {[%emt 0:00:22]} 77. Kf2 {[%emt 0:00:49]} Rc5 {[%emt 0:00:37]} 78. Rd2 {[%emt 0:00:40]} Rc8 {[%emt 0:00:55]} 79. Rd5+ {[%emt 0:01:13]} Ke4 {[%emt 0:00:06]} 80. Rd2 {[%emt 0:00:35]} Kf5 {[%emt 0:00:21]} 81. Bf7 {[%emt 0:00:29]} Rh8 {[%emt 0:00:48]} 82. Kg1 {[%emt 0:00:14]} Rb8 {[%emt 0:00:49]} 83. Bd5 {[%emt 0:00:20]} Rb1+ {[%emt 0:00:36]} 84. Kf2 {[%emt 0:00:19]} Rb6 {[%emt 0:00:41]} 85. Bc4 {[%emt 0:01:01]} Rh6 {[%emt 0:00:27]} 86. Bd3+ {[%emt 0:00:14]} Ke5 {[%emt 0:00:05]} 87. Kg1 {[%emt 0:00:21]} Rd6 {[%emt 0:00:56]} 88. Re2+ {[%emt 0:00:35]} Kf6 {[%emt 0:00:24]} 89. Rd2 {[%emt 0:00:54]} Ke5 {[%emt 0:00:05]} 90. Rd1 {[%emt 0:00:09]} Rb6 {[%emt 0:00:41]} 91. Re1+ {[%emt 0:00:30]} Kf6 {[%emt 0:00:05]} 92. Re4 {[%emt 0:00:43]} Rb3 {[%emt 0:01:12]} 93. Rd4 {[%emt 0:00:29]} Ke5 {[%emt 0:00:15]} 94. Rd8 {[%emt 0:00:07]} Ra3 {[%emt 0:00:23]} 95. Rd7 {[%emt 0:01:07]} Rb3 {[%emt 0:01:00]} 96. Kf2 {[%emt 0:00:33]} Rb2+ {[%emt 0:00:08]} 97. Kg1 {[%emt 0:00:15]} Rb3 {[%emt 0:00:04]} 98. gxf4+ {[%emt 0:00:43]} gxf4 {[%emt 0:00:20]} 99. Bf1 {[%emt 0:00:30]} Rb1 {[%emt 0:00:52]} 100. Rg7 {[%emt 0:00:33]} Kf5 {[%emt 0:00:07]} 101. Ra7 {[%emt 0:00:17]} Ke4 {[%emt 0:01:16]} 102. Ra4+ {[%emt 0:00:18]} Ke3 {[%emt 0:00:26]} 103. Ra3+ {[%emt 0:00:05]} Ke4 {[%emt 0:00:23]} 104. Rc3 {[%emt 0:00:35]} Ra1 {[%emt 0:00:14]} 105. Rc2 {[%emt 0:00:41]} Ke3 {[%emt 0:02:09]} 106. Re2+ {[%emt 0:00:40]} Kf3 {[%emt 0:00:00]} 107. Rf2+ {[%emt 0:00:18]} Ke3 {[%emt 0:00:00]} 108. Kg2 {[%emt 0:00:10]} Re1 {[%emt 0:00:00]} 109. Ra2 {[%emt 0:00:23]} Rd1 {[%emt 0:00:49]} 110. Re2+ {[%emt 0:00:28]} Kd4 {[%emt 0:00:27]} 111. Re8 {[%emt 0:00:28]} Rd2+ {[%emt 0:00:19]} 112. Kg1 {[%emt 0:00:29]} Rb2 {[%emt 0:00:44]} 113. Rg8 {[%emt 0:00:46]} g3 {[%emt 0:00:12]} 114. h3 {[%emt 0:01:26]} Ke3 {[%emt 0:00:56]} 115. Re8+ {[%emt 0:00:27]} Kf3 {[%emt 0:00:22]} 116. Rc8 {[%emt 0:00:15]} Rb1 {[%emt 0:00:38]} 117. Rc3+ {[%emt 0:00:10]} Ke4 {[%emt 0:00:08]} 118. Kg2 {[%emt 0:00:49]} Rb2+ {[%emt 0:00:12]} 119. Kg1 {[%emt 0:00:11]} Rb1 {[%emt 0:00:04]} 120. Kg2 {[%emt 0:00:57]} Rb2+ {[%emt 0:00:07]} 1/2-1/2

[Event "British Championship 2024"]
[Site "Hull"]
[Date "2024.07.31"]
[Round "5.13"]
[White "Motwani, Paul"]
[Black "Yao, Lan"]
[Result "0-1"]
[Annotator "TA"]
[ECO "B94"]
[WhiteElo "2414"]
[BlackElo "2325"]
[PlyCount "152"]
[EventDate "2024.07.31"]
[EventCountry "GBR"]
[SourceTitle "playchess.com"]
[Source "ChessBase"]
[SourceQuality "1"]
[TimeControl "40/5400+30:1800+30"]

{[%evp 12,152,5,1,20,8,12,8,11,4,7,0,0,-2,0,0,0,0,30,29,22,21,18,16,10,18,41,30,43,35,40,18,19,16,25,0,0,0,0,0,0,-13,-13,0,31,26,19,11,54,54,68,62,98,85,86,66,75,59,60,55,57,0,49,49,104,49,64,50,64,50,103,50,50,50,50,49,110,122,113,121,125,118,165,156,157,118,177,177,193,156,186,173,175,157,258,258,397,46,46,46,56,46,47,46,135,34,34,34,88,110,116,44,59,0,85,0,0,0,0,0,0,0,0,-29977,-29978,-29978,-29979,-29978,-29976,-29976,-29976,-29981,-29982,-29993,-29994,-29994,-29995,-29996,-29984,-29995,-29996,-29996,-29997]} 1. e4 {[%emt 0:00:04]} c5 {[%emt 0:00:03]} 2. Nf3 {[%emt 0:00:07]} d6 {[%emt 0:00:06]} 3. d4 {[%emt 0:00:32]} cxd4 {[%emt 0:00:04]} 4. Nxd4 {[%emt 0:00:14]} Nf6 {[%emt 0:00:04]} 5. Nc3 {[%emt 0:00:17]} a6 {[%emt 0:00:03]} 6. Bg5 {[%emt 0:00:25]} Nbd7 {[%emt 0:00:05]} 7. Bc4 {[%emt 0:00:59]} Qb6 {[%emt 0:01:25]} 8. Bb3 {[%emt 0:08:34]} e6 {[%emt 0:00:29][%cal Be7e6,Be6e5][%mdl 32]} 9. O-O {[%emt 0:05:17]} Be7 {[%emt 0:05:10] The position is equal.} 10. Be3 {[%emt 0:10:56][%cal Od4e6]} Nc5 {[%emt 0:02:42]} 11. f4 {[%emt 0:03:31][%cal Bf2f4,Bf4f5][%mdl 32]} Qc7 {[%emt 0:03:07][%cal Oe8g8]} (11... Ncxe4 $2 12. Nxe4 Nxe4 13. Nf5 $18) 12. f5 {[%emt 0:03:34]} Bd7 {[%emt 0:09:34]} 13. Qf3 {[%emt 0:03:17]} e5 {[%emt 0:16:04]} 14. Nde2 {[%emt 0:00:55]} Nxb3 {[%emt 0:00:17]} 15. cxb3 {[%emt 0:03:47]} Bc6 {[%emt 0:00:24]} 16. Rad1 {[%emt 0:11:25]} Rd8 {[%emt 0:13:03]} 17. g4 {[%emt 0:09:24] And now g5 would win.} h6 {[%emt 0:06:47]} 18. Ng3 {[%emt 0:01:54]} Qa5 {[%emt 0:13:13]} 19. Nh5 {[%emt 0:08:39]} Nxh5 {[%emt 0:06:33]} 20. gxh5 {[%emt 0:00:06]} Rd7 {[%emt 0:01:22]} 21. a3 {[%emt 0:03:54]} Qd8 {[%emt 0:00:47]} 22. Kh1 {[%emt 0:05:40]} Bg5 {[%emt 0:00:43]} 23. Bf2 {[%emt 0:02:26]} O-O {[%emt 0:01:35]} 24. Rg1 {[%emt 0:03:10]} Re8 {[%emt 0:01:19]} 25. Rg4 {[%emt 0:01:17]} Kh7 {[%emt 0:04:52]} 26. h4 {[%emt 0:01:14]} Bf6 {[%emt 0:00:15][%cal Od6d5]} 27. Kg2 {[%emt 0:01:36]} d5 {[%emt 0:02:42]} 28. Nxd5 {[%emt 0:06:00]} Bxd5 {[%emt 0:00:05]} 29. exd5 {[%emt 0:00:46]} (29. Rxd5 Rxd5 30. exd5 Re7) 29... Qc7 {[%emt 0:02:09]} 30. Rc4 $1 {[%emt 0:00:50]} Qa5 {[%emt 0:04:59] Black is weak on the light squares} 31. Qe4 {[%emt 0:01:08]} Red8 {[%emt 0:01:21][%cal Rd7d5]} 32. Rc5 {[%emt 0:00:34]} Qb6 {[%emt 0:00:46]} 33. Rd3 {[%emt 0:02:08]} Qd6 {[%emt 0:00:27]} 34. b4 {[%emt 0:01:22]} Kh8 {[%emt 0:01:31]} 35. Be3 {[%emt 0:00:42]} Be7 {[%emt 0:01:26]} 36. Bf2 {[%emt 0:00:39]} (36. Rc2 $14) 36... Qb8 {[%emt 0:01:45]} (36... Bf6 $11) 37. Rcc3 $14 {[%emt 0:00:36]} Bf6 {[%emt 0:00:36]} (37... Rg8 $14) 38. Kf3 {[%emt 0:00:44]} (38. Bc5 $16) 38... Re8 {[%emt 0:00:40]} 39. Kg4 {[%emt 0:00:36]} Qd8 {[%emt 0:00:35]} 40. Rc2 {[%emt 0:00:30]} Rd6 {[%emt 0:00:44]} (40... Be7 $14) 41. Kf3 {[%emt 0:11:00]} (41. Kh3 $16) 41... Rd7 {[%emt 0:00:40]} 42. Ke2 {[%emt 0:01:01][%cal Bf3e2,Be2d1,Bd1c1,Bc1b1,Bb1a2,Ba2b3][%mdl 32]} (42. Rcd2 {with more complications.} Qc7 43. Rc3 Qd8 44. Kg4) 42... Rd6 {[%emt 0:01:19]} 43. Kd1 {[%emt 0:00:45]} Qb8 {[%emt 0:03:51]} (43... Be7 $14) 44. Kc1 $16 {[%emt 0:01:13]} Rc8 {[%emt 0:00:53]} 45. Rcc3 {[%emt 0:02:07]} Rcd8 {[%emt 0:01:38]} 46. Kb1 {[%emt 0:00:25]} Re8 {[%emt 0:00:59]} (46... b5 $16) 47. Ka2 {[%emt 0:01:34]} Qd8 {[%emt 0:00:26]} 48. Rc2 {[%emt 0:01:04]} Qb8 {[%emt 0:02:57]} (48... Rd7 $16 49. Rcd2 Rd6) 49. a4 $18 {[%emt 0:03:56][%cal Ba3a4,Ba4a5][%mdl 32]} Rd7 {[%emt 0:04:22]} 50. Kb3 {[%emt 0:02:22]} Qd6 {[%emt 0:01:17]} 51. Rc4 {[%emt 0:02:42]} Be7 {[%emt 0:05:22]} 52. a5 $1 {[%emt 0:02:18]} Qf6 {[%emt 0:00:38]} (52... f6 $16 53. Bb6 Kh7) 53. Rdc3 {[%emt 0:02:53]} Bd6 {[%emt 0:01:46]} (53... Bd8 $142 54. Rc8 Rg8) 54. Rc8 $2 {[%emt 0:00:36]} ({White must play} 54. Bb6 $1 $18) 54... Rdd8 $14 {[%emt 0:00:26]} 55. Rxd8 {[%emt 0:00:39]} Rxd8 {[%emt 0:00:09]} 56. Bb6 {[%emt 0:01:01]} Re8 {[%emt 0:00:11]} 57. Bc7 {[%emt 0:00:41]} Qe7 {[%emt 0:00:50]} (57... Kg8 $14) 58. Bxd6 {[%emt 0:00:53]} (58. f6 $1 $16 {[%cal Rf6e7]} Qd7 (58... Qxf6 59. Rf3 $18) 59. fxg7+ Kg8 60. Qe3 (60. Bxd6 Qxd6 61. Ka3 Rd8 $18) 60... Kxg7 (60... Bxc7 $2 61. Qxh6 f5 62. Rxc7 $18) 61. Bxd6 Qxd6 62. Qe4) 58... Qxd6 $16 {[%emt 0:00:01][%mdl 4096] Endgame. KQR-KQR} 59. Rc5 {[%emt 0:00:31]} Rd8 {[%emt 0:00:43]} (59... f6 $14) 60. Qc4 {[%emt 0:01:34]} Qd7 {[%emt 0:03:23] [#]} 61. Rc7 {[%emt 0:00:53]} (61. f6 $1 $16) 61... Qxf5 $14 {[%emt 0:00:12]} 62. Rxb7 {[%emt 0:00:27]} (62. d6 $1 $14 Qf3+ (62... Rxd6 63. Qxf7 Qxf7+ 64. Rxf7 $16) 63. Ka2 Rxd6 64. Rxf7 (64. Qxf7 Qxf7+ 65. Rxf7 Re6 $11)) 62... Qxh5 {[%emt 0:01:50] [#]} (62... Rc8 $1 $11 63. Rc7 (63. Qxa6 $2 Qf3+ 64. Ka4 Qxd5 $19) 63... Qf3+ 64. Ka4 Qd1+ 65. Ka3 Qa1+ 66. Kb3 Rxc7 (66... Qd1+ 67. Ka3 $11) 67. Qxc7 Qd1+ 68. Ka3 Qa1+ 69. Kb3 Qd1+ 70. Ka3 Qa1+ 71. Kb3) 63. Rb6 {[%emt 0:00:53]} (63. Qxa6 Qf3+ 64. Ka2 (64. Ka4 Qd1+ 65. Ka3 Rxd5 $11) 64... Qxd5+ 65. Ka3 Rd6 $11) ({White should try} 63. Ka2 $1 $16) 63... Qd1+ $11 {[%emt 0:00:30]} 64. Ka2 {[%emt 0:00:29]} Rxd5 {[%emt 0:02:30]} 65. Qb3 {[%emt 0:00:10] Hoping for Qxd1.} Qh1 {[%emt 0:01:36] ...Rd1 is the strong threat.} 66. Rxa6 {[%emt 0:00:57] Strongly threatening Ra8+.} Rd1 {[%emt 0:00:57][%csl Gh1][%cal Rd1a1]} 67. Qxf7 $2 {[%emt 0:00:33][%mdl 8192]} (67. Qc4 $11) 67... Ra1+ {[%emt 0:00:21] Black mates.} (67... Qxh4 68. Rg6) 68. Kb3 {[%emt 0:00:01]} Qd1+ {[%emt 0:00:55]} ({Stronger than} 68... Qxh4 69. Qe8+ (69. Ra8+ Qd8 70. Rxd8+ Kh7 71. Qf5+ g6 72. Qf7#) 69... Kh7 70. Qg6+ (70. Qxe5 Qg4 $18) 70... Kh8 71. Ra8+) 69. Kc4 {[%emt 0:00:17]} Qe2+ {[%emt 0:01:00]} 70. Kc5 {[%emt 0:01:13]} Qxa6 {[%emt 0:00:07]} 71. Qe8+ {[%emt 0:00:30]} Kh7 {[%emt 0:00:06]} 72. h5 {[%emt 0:00:32]} Rc1+ {[%emt 0:00:09]} 73. Kd5 {[%emt 0:00:11]} Qc4+ {[%emt 0:00:30]} 74. Kd6 {[%emt 0:00:18]} Qc7+ {[%emt 0:01:23]} 75. Kd5 {[%emt 0:00:43]} Rd1+ {[%emt 0:00:28]} 76. Ke4 {[%emt 0:00:40]} Qc4+ {[%emt 0:00:32] Quite a comeback for Black.   Weighted Error Value: White=0.21 (precise) /Black=0.21 (precise) .  Loses game:     	White=1     	---        Missed win:     	White=1     	---        Mistake:       	White=7     	Black=11     Inaccurate:     	---       	Black=4      OK:         	White=19    	Black=26     Best:        	White=2     	Black=4      Strong:       	White=2     	---} 0-1